bitfinex-derivatives/quotes_BTCF0:USTF0_20210707
["timestamp","ask_amount","ask_price","bid_price","bid_amount"]
[1625644786964,0.24057544,34705.0,34696.0,4.47092]
[1625644787204,0.24057544,34705.0,34697.0,0.433854]
[1625644788227,0.24057544,34705.0,34704.0,0.72594088]
[1625644789250,0.24057544,34705.0,34704.0,0.48536544]
[1625644789370,0.24057544,34705.0,34704.0,0.24057544]
[1625644789608,0.24057544,34705.0,34700.0,0.001]
[1625644789728,0.55196544,34705.0,34700.0,0.001]
[1625644790150,0.72172632,34701.0,34700.0,0.001]
[1625644794421,0.72172632,34701.0,34695.0,0.002]
[1625644795325,0.72172632,34701.0,34699.0,0.001]
[1625644795445,0.72172632,34701.0,34699.0,0.25895]
[1625644796227,0.72172632,34701.0,34700.0,0.24057544]
[1625644798091,0.72172632,34701.0,34699.0,0.001]
[1625644801336,0.24057544,34701.0,34699.0,0.001]
[1625644801577,0.24057544,34701.0,34700.0,0.00491846]
[1625644801699,0.24057544,34701.0,34700.0,0.22002846]
[1625644804224,0.24057544,34701.0,34700.0,0.70117934]
[1625644805729,0.24057544,34701.0,34700.0,0.69626088]
[1625644808073,0.24057544,34701.0,34700.0,0.76776088]
[1625644808195,0.24057544,34701.0,34700.0,0.83926088]
[1625644809395,0.89007297,34705.0,34700.0,0.83926088]
[1625644809691,0.01241178,34704.0,34700.0,0.83926088]
[1625644810293,0.01241178,34704.0,34702.0,0.24057544]
[1625644814141,0.66299595,34704.0,34702.0,0.24057544]
[1625644814499,0.01241109,34703.0,34702.0,0.24057544]
[1625644816184,0.01245111,34704.0,34702.0,0.24057544]
[1625644816365,0.65185825,34706.0,34702.0,0.24057544]
[1625644816483,1.30344517,34706.0,34702.0,0.24057544]
[1625644816724,0.01241858,34705.0,34702.0,0.24057544]
[1625644818529,0.66467988,34705.0,34702.0,0.24057544]
[1625644819008,0.01241856,34704.0,34702.0,0.24057544]
[1625644819911,0.99221348,34704.0,34702.0,0.24057544]
[1625644820271,0.01242359,34703.0,34702.0,0.24057544]
[1625644820512,1.64520652,34703.0,34702.0,0.24057544]
[1625644821052,2.29836925,34703.0,34702.0,0.24057544]
[1625644821413,2.28594566,34703.0,34702.0,0.24057544]
[1625644821592,2.29836837,34703.0,34702.0,0.24057544]
[1625644821893,2.9521397,34703.0,34702.0,0.24057544]
[1625644822312,1.97250259,34703.0,34702.0,0.24057544]
[1625644822672,1.96007988,34703.0,34702.0,0.24057544]
[1625644823030,1.30691715,34703.0,34702.0,0.24057544]
[1625644823210,1.13424359,34703.0,34702.0,0.24057544]
[1625644823933,1.46208062,34703.0,34702.0,0.24057544]
[1625644824234,2.11655361,34703.0,34702.0,0.24057544]
[1625644824653,2.12897569,34703.0,34702.0,0.24057544]
[1625644825378,1.64850343,34703.0,34702.0,0.24057544]
[1625644825976,1.81384466,34703.0,34702.0,0.24057544]
[1625644826094,1.15937167,34703.0,34702.0,0.24057544]
[1625644827656,2.79800759,34703.0,34702.0,0.24057544]
[1625644828260,1.651058,34703.0,34702.0,0.24057544]
[1625644828860,2.79772057,34703.0,34702.0,0.24057544]
[1625644829343,1.15908465,34703.0,34702.0,0.24057544]
[1625644830005,1.81459715,34703.0,34702.0,0.24057544]
[1625644830125,1.64190866,34703.0,34702.0,0.24057544]
[1625644830603,2.95376627,34703.0,34702.0,0.24057544]
[1625644830786,1.96737011,34703.0,34702.0,0.24057544]
[1625644831143,3.11540944,34703.0,34702.0,0.24057544]
[1625644831692,2.45989694,34703.0,34702.0,0.24057544]
[1625644832107,3.60807386,34703.0,34702.0,0.24057544]
[1625644832708,2.46003453,34703.0,34702.0,0.24057544]
[1625644832889,3.44322136,34703.0,34702.0,0.24057544]
[1625644833007,4.59147435,34703.0,34702.0,0.24057544]
[1625644833431,4.75525518,34703.0,34702.0,0.24057544]
[1625644833729,5.90330403,34703.0,34702.0,0.24057544]
[1625644833848,4.59144642,34703.0,34702.0,0.24057544]
[1625644834209,3.60825959,34703.0,34702.0,0.24057544]
[1625644834572,2.47239594,34703.0,34702.0,0.24057544]
[1625644834693,3.62023854,34703.0,34702.0,0.24057544]
[1625644834814,4.60412705,34703.0,34702.0,0.24057544]
[1625644834994,3.2921693,34703.0,34702.0,0.24057544]
[1625644835116,4.60404605,34703.0,34702.0,0.24057544]
[1625644835235,3.4559972,34703.0,34702.0,0.24057544]
[1625644835716,4.11199977,34703.0,34702.0,0.24057544]
[1625644835958,4.60404269,34703.0,34702.0,0.24057544]
[1625644836136,3.62015418,34703.0,34702.0,0.24057544]
[1625644836257,5.75153367,34703.0,34702.0,0.24057544]
[1625644836499,4.43965692,34703.0,34702.0,0.24057544]
[1625644836621,4.60351082,34703.0,34702.0,0.24057544]
[1625644837220,4.43082233,34703.0,34702.0,0.24057544]
[1625644837822,3.93511891,34703.0,34702.0,0.24057544]
[1625644838124,3.44307599,34703.0,34702.0,0.24057544]
[1625644838301,1.3116965,34703.0,34702.0,0.24057544]
[1625644838541,1.3116965,34703.0,34702.0,0.51075544]
[1625644838845,2.13127133,34703.0,34702.0,0.51075544]
[1625644839264,4.09902191,34703.0,34702.0,0.51075544]
[1625644840404,1.96775058,34703.0,34702.0,0.51075544]
[1625644840525,2.45978509,34703.0,34702.0,0.51075544]
[1625644840645,2.45978509,34703.0,34702.0,0.24057544]
[1625644840766,0.49203451,34703.0,34702.0,0.24057544]
[1625644841073,4.5899411,34703.0,34702.0,0.24057544]
[1625644841246,4.5899411,34703.0,34702.0,0.24549924]
[1625644841606,4.09790659,34703.0,34702.0,0.24549924]
[1625644841730,4.09790659,34703.0,34702.0,0.75459662]
[1625644842266,0.49228304,34703.0,34702.0,0.75459662]
[1625644842508,4.5931404,34703.0,34702.0,0.99517206]
[1625644842990,4.5931404,34703.0,34702.0,0.48607468]
[1625644843648,4.5931404,34703.0,34702.0,0.99514775]
[1625644843770,4.10085736,34703.0,34702.0,0.99514775]
[1625644843888,1.14822038,34703.0,34702.0,0.99514775]
[1625644844009,0.49221732,34703.0,34702.0,0.99514775]
[1625644844129,0.4216816,34703.0,34702.0,1.33793775]
[1625644844252,3.21019544,34703.0,34702.0,1.33793775]
[1625644844737,3.21019544,34703.0,34702.0,2.01663275]
[1625644845039,4.52144196,34703.0,34702.0,2.01663275]
[1625644845576,4.52144196,34703.0,34702.0,0.678695]
[1625644845697,4.52144196,34703.0,34702.0,0.01623275]
[1625644845938,4.52144196,34703.0,34699.0,1.78448571]
[1625644846057,4.09976036,34703.0,34698.0,0.99973368]
[1625644846176,1.34530219,34703.0,34698.0,0.99973368]
[1625644846297,0.5,34702.0,34701.0,0.001]
[1625644846421,0.30797521,34702.0,34701.0,0.001]
[1625644846602,0.74264088,34702.0,34701.0,0.001]
[1625644846721,4.69626021,34702.0,34698.0,0.99973368]
[1625644847020,1.96110136,34699.0,34698.0,0.99973368]
[1625644847144,2.94165204,34699.0,34698.0,0.99973368]
[1625644847501,2.98814007,34699.0,34698.0,0.99973368]
[1625644847741,2.98814007,34699.0,34696.0,1.35946089]
[1625644847861,2.98814007,34699.0,34696.0,0.002]
[1625644847981,0.04648676,34698.0,34696.0,0.002]
[1625644848221,0.65316124,34697.0,34696.0,0.002]
[1625644848520,1.18080048,34697.0,34696.0,0.002]
[1625644849065,3.1502092,34697.0,34690.0,0.83353363]
[1625644849244,6.57889238,34697.0,34690.0,0.83353363]
[1625644849366,6.57889238,34697.0,34691.0,0.003]
[1625644849509,1.63084993,34696.0,34691.0,0.003]
[1625644849615,1.64327471,34696.0,34691.0,0.003]
[1625644849728,2.12018533,34692.0,34691.0,0.003]
[1625644849845,4.07730456,34692.0,34691.0,0.003]
[1625644849966,4.37192456,34692.0,34691.0,0.003]
[1625644850087,4.38434949,34692.0,34691.0,0.003]
[1625644850625,4.86550037,34692.0,34691.0,0.003]
[1625644851350,0.78819581,34692.0,34691.0,0.003]
[1625644851469,2.09222764,34692.0,34691.0,0.003]
[1625644851592,3.23327586,34692.0,34691.0,0.003]
[1625644851833,4.86199581,34692.0,34691.0,0.003]
[1625644851954,4.94909581,34692.0,34691.0,0.003]
[1625644852076,6.41486563,34692.0,34691.0,0.003]
[1625644852195,6.32776563,34692.0,34691.0,0.003]
[1625644852314,6.82776563,34692.0,34691.0,0.003]
[1625644852440,8.45615296,34692.0,34691.0,0.003]
[1625644852674,7.95615296,34692.0,34691.0,0.003]
[1625644852797,7.98615296,34692.0,34691.0,0.003]
[1625644852917,7.98615296,34692.0,34686.0,0.004]
[1625644853096,0.04243379,34691.0,34686.0,0.004]
[1625644853278,4.39664334,34687.0,34686.0,0.004]
[1625644853398,4.89664334,34687.0,34686.0,0.004]
[1625644853516,4.39664334,34687.0,34686.0,0.004]
[1625644854054,4.89664334,34687.0,34686.0,0.004]
[1625644854174,4.92664334,34687.0,34686.0,0.004]
[1625644854418,4.92664334,34687.0,34678.0,0.49922326]
[1625644854540,6.06546693,34687.0,34676.0,1.01738673]
[1625644854658,0.96230176,34677.0,34676.0,1.01738673]
[1625644854839,1.22341176,34677.0,34676.0,1.01738673]
[1625644855080,1.87377477,34677.0,34676.0,1.01738673]
[1625644855502,1.87377477,34677.0,34676.0,0.04858673]
[1625644855623,1.87377477,34677.0,34674.0,0.59091225]
[1625644855924,1.87377477,34677.0,34674.0,0.47791225]
[1625644855925,0.64937811,34676.0,34674.0,0.47791225]
[1625644856522,0.64923526,34675.0,34674.0,0.47791225]
[1625644857122,0.64923526,34675.0,34673.0,0.78319297]
[1625644857481,0.64923526,34675.0,34673.0,0.1058]
[1625644857724,1.62173954,34675.0,34673.0,0.1058]
[1625644858266,0.64825534,34674.0,34673.0,0.1058]
[1625644860124,0.64825534,34674.0,34669.0,0.002]
[1625644860365,0.64846454,34675.0,34669.0,0.002]
[1625644860605,0.72172632,34670.0,34669.0,0.27468]
[1625644863188,0.24057544,34670.0,34669.0,0.27468]
[1625644863551,0.24057544,34670.0,34669.0,0.95037586]
[1625644863910,7.544e-05,34670.0,34669.0,3.14630477]
[1625644864331,0.97182469,34676.0,34674.0,0.001]
[1625644864451,2.469e-05,34676.0,34674.0,0.001]
[1625644864572,0.02030996,34678.0,34676.0,4.5051]
[1625644864693,0.02030996,34678.0,34677.0,1.22767176]
[1625644865054,1.45833491,34680.0,34677.0,1.22767176]
[1625644865351,0.32419369,34680.0,34677.0,1.22767176]
[1625644865472,0.32419369,34680.0,34679.0,2.87034725]
[1625644865781,0.64922536,34681.0,34679.0,4.22105842]
[1625644866074,0.64922536,34681.0,34680.0,2.87025263]
[1625644866315,0.64922536,34681.0,34680.0,4.22092163]
[1625644866493,0.64922536,34681.0,34680.0,4.65302363]
[1625644866616,0.47639244,34681.0,34680.0,4.65302363]
[1625644867516,0.47639244,34681.0,34680.0,1.782771]
[1625644867874,0.47639244,34681.0,34680.0,2.79572513]
[1625644868118,0.47639244,34681.0,34680.0,5.74013388]
[1625644868476,0.47639244,34681.0,34680.0,6.17349788]
[1625644868715,0.003,34684.0,34680.0,6.17349788]
[1625644868955,0.003,34684.0,34683.0,1.68826682]
[1625644869376,0.003,34684.0,34683.0,3.29640625]
[1625644870636,0.003,34684.0,34683.0,4.9593344]
[1625644870999,0.003,34684.0,34683.0,3.27106758]
[1625644871299,0.003,34684.0,34683.0,3.77756968]
[1625644871720,0.003,34684.0,34683.0,4.95932284]
[1625644872564,0.003,34684.0,34683.0,3.77754557]
[1625644873104,0.003,34684.0,34683.0,2.08926604]
[1625644873223,0.003,34684.0,34683.0,2.76462607]
[1625644873521,0.003,34684.0,34683.0,1.58287291]
[1625644873641,0.003,34684.0,34683.0,1.15651091]
[1625644873763,0.003,34684.0,34683.0,0.67536003]
[1625644874663,0.24357544,34684.0,34683.0,0.91593547]
[1625644874964,0.07077741,34684.0,34683.0,0.91593547]
[1625644875385,0.07077741,34684.0,34683.0,0.24057544]
[1625644883077,0.22082821,34687.0,34683.0,0.24057544]
[1625644883438,0.32253225,34686.0,34683.0,0.24057544]
[1625644884762,0.32253225,34686.0,34685.0,0.24057544]
[1625644885121,0.88547876,34687.0,34685.0,0.24057544]
[1625644885122,1.20797466,34687.0,34685.0,0.24057544]
[1625644885421,0.56307134,34687.0,34685.0,0.24057544]
[1625644886808,0.24057544,34687.0,34685.0,0.24057544]
[1625644889935,0.14970095,34686.0,34685.0,0.24057544]
[1625644890294,0.14970095,34686.0,34685.0,0.24553304]
[1625644890534,0.4722779,34686.0,34685.0,0.24553304]
[1625644890778,0.71285334,34686.0,34685.0,0.24553304]
[1625644891736,1.20822539,34686.0,34685.0,0.24553304]
[1625644892459,0.88564844,34686.0,34685.0,0.24553304]
[1625644893600,0.24057544,34686.0,34685.0,0.24553304]
[1625644894558,0.56339313,34686.0,34685.0,0.24553304]
[1625644895104,0.72489615,34686.0,34685.0,0.24553304]
[1625644896244,0.40207846,34686.0,34685.0,0.24553304]
[1625644896722,0.24057544,34686.0,34685.0,0.24553304]
[1625644896843,0.06780298,34686.0,34685.0,0.24553304]
[1625644897626,0.39055466,34686.0,34685.0,0.24553304]
[1625644898171,0.55211498,34686.0,34685.0,0.24553304]
[1625644899371,0.2293633,34686.0,34685.0,0.24553304]
[1625644900097,0.06780298,34686.0,34685.0,0.24553304]
[1625644900272,0.22938029,34686.0,34685.0,0.24553304]
[1625644900392,0.55237349,34686.0,34685.0,0.24553304]
[1625644901596,0.48457051,34686.0,34685.0,0.24553304]
[1625644901715,0.48457051,34686.0,34685.0,0.53343304]
[1625644902075,0.64640081,34687.0,34685.0,0.53343304]
[1625644902437,0.64640081,34687.0,34686.0,0.00493111]
[1625644902915,0.64640081,34687.0,34686.0,0.24550655]
[1625644903401,2.26212938,34688.0,34686.0,0.24550655]
[1625644903818,2.26212938,34688.0,34687.0,0.00493054]
[1625644904117,0.79675034,34688.0,34687.0,0.00493054]
[1625644904902,0.79675034,34688.0,34687.0,3.11864314]
[1625644905082,0.79675034,34688.0,34687.0,3.12357326]
[1625644905205,0.001,34690.0,34687.0,3.12357326]
[1625644905685,0.001,34690.0,34689.0,1.01612754]
[1625644905988,0.001,34690.0,34689.0,2.87902819]
[1625644906105,0.001,34690.0,34689.0,2.88395847]
[1625644906407,0.001,34692.0,34689.0,2.88395847]
[1625644906658,0.001,34692.0,34691.0,1.69307836]
[1625644906890,0.001,34692.0,34691.0,2.17915917]
[1625644908151,0.001,34692.0,34691.0,0.48608081]
[1625644909415,0.001,34692.0,34691.0,1.16304092]
[1625644909775,0.001,34692.0,34691.0,3.36294588]
[1625644910695,0.057,34709.0,34691.0,3.36294588]
[1625644910805,0.057,34709.0,34691.0,5.64578353]
[1625644910806,0.16263742,34700.0,34691.0,5.64578353]
[1625644910983,0.16263742,34700.0,34699.0,1.65079415]
[1625644911223,0.31498662,34701.0,34699.0,5.60608315]
[1625644911461,0.31498662,34701.0,34699.0,5.61081189]
[1625644911641,0.31498662,34701.0,34700.0,0.00472862]
[1625644912007,0.31498662,34701.0,34699.0,5.60608315]
[1625644913088,0.003,34702.0,34699.0,4.92951532]
[1625644914229,0.003,34702.0,34699.0,5.94375046]
[1625644914651,0.003,34702.0,34701.0,0.3379181]
[1625644915011,0.003,34702.0,34701.0,0.57849354]
[1625644915371,0.003,34702.0,34701.0,0.74745231]
[1625644915498,0.003,34702.0,34701.0,1.42341344]
[1625644915858,0.003,34702.0,34701.0,1.7614005]
[1625644917360,0.003,34702.0,34701.0,1.08543937]
[1625644917603,1.62580237,34702.0,34701.0,1.08543937]
[1625644917718,1.62580237,34702.0,34701.0,0.74745231]
[1625644917719,2.76169913,34702.0,34701.0,0.74745231]
[1625644917898,2.76169913,34702.0,34701.0,0.16895877]
[1625644918019,4.05898928,34702.0,34696.0,0.1689447]
[1625644918140,4.32608928,34702.0,34696.0,0.1689447]
[1625644918260,4.32308928,34702.0,34697.0,0.001]
[1625644918499,1.29705601,34701.0,34692.0,1.86071822]
[1625644918645,1.79705601,34701.0,34692.0,0.02511822]
[1625644918804,0.64793057,34693.0,34692.0,0.02511822]
[1625644918921,1.15892601,34693.0,34692.0,0.02511822]
[1625644919041,1.64007689,34693.0,34692.0,0.02511822]
[1625644919162,2.6110481,34693.0,34692.0,0.02511822]
[1625644919580,2.6110481,34693.0,34692.0,0.002]
[1625644919821,3.90508894,34693.0,34692.0,0.002]
[1625644920121,3.91810863,34693.0,34692.0,0.002]
[1625644920239,5.0508814,34693.0,34692.0,0.002]
[1625644920538,4.23025239,34693.0,34692.0,0.002]
[1625644920960,3.25928118,34693.0,34692.0,0.002]
[1625644921982,2.93472416,34693.0,34692.0,0.002]
[1625644922164,1.80195139,34693.0,34692.0,0.002]
[1625644923128,5.19543025,34693.0,34692.0,0.002]
[1625644923247,6.32658987,34693.0,34692.0,0.002]
[1625644923430,5.35710605,34693.0,34692.0,0.002]
[1625644923849,6.32729176,34693.0,34692.0,0.002]
[1625644924290,6.08671632,34693.0,34692.0,0.002]
[1625644924398,2.09778276,34693.0,34692.0,0.25719]
[1625644924514,3.39214141,34693.0,34692.0,0.25719]
[1625644924753,4.52667166,34693.0,34692.0,0.25719]
[1625644925053,3.31591051,34693.0,34692.0,0.73834088]
[1625644925474,3.07533507,34693.0,34692.0,0.73834088]
[1625644925833,4.04958569,34693.0,34692.0,0.73834088]
[1625644926077,4.04958569,34693.0,34692.0,1.24621936]
[1625644926078,4.53737078,34693.0,34692.0,1.24621936]
[1625644926321,2.59656596,34693.0,34692.0,1.24621936]
[1625644926675,1.46181153,34694.0,34692.0,1.24621936]
[1625644926795,0.30682452,34694.0,34692.0,1.24621936]
[1625644927036,0.30682452,34694.0,34693.0,0.24057544]
[1625644927156,0.30682452,34694.0,34693.0,0.91762201]
[1625644927937,2.48929652,34696.0,34693.0,0.91762201]
[1625644928478,1.30069687,34696.0,34695.0,5.0054]
[1625644928897,1.1279586,34696.0,34695.0,5.0054]
[1625644929080,1.1279586,34696.0,34695.0,5.24597544]
[1625644929316,1.1279586,34696.0,34695.0,5.25068253]
[1625644929435,0.6275586,34696.0,34695.0,5.25068253]
[1625644929558,1.7411503,34697.0,34695.0,6.18353953]
[1625644929737,0.97682226,34697.0,34695.0,6.18353953]
[1625644929856,0.47632226,34697.0,34696.0,0.00470623]
[1625644930097,0.47632226,34697.0,34696.0,1.01971552]
[1625644930219,0.18212226,34697.0,34696.0,1.44861652]
[1625644930340,0.18212226,34697.0,34696.0,2.12528355]
[1625644930461,0.18212226,34697.0,34696.0,6.18528575]
[1625644931002,0.001,34697.0,34696.0,6.18528575]
[1625644932096,0.001,34697.0,34696.0,5.17027646]
[1625644932266,0.001,34697.0,34696.0,2.80075843]
[1625644932864,0.001,34697.0,34696.0,2.7960522]
[1625644934247,0.001,34697.0,34696.0,1.1050616]
[1625644934787,0.001,34697.0,34696.0,0.6761606]
[1625644935148,0.27421,34697.0,34696.0,3.38061502]
[1625644935509,1.89897628,34697.0,34696.0,3.38061502]
[1625644935628,1.72625793,34697.0,34696.0,1.38091502]
[1625644935748,1.73927584,34697.0,34696.0,1.38091502]
[1625644935868,2.2267707,34697.0,34696.0,1.38091502]
[1625644937013,2.46734614,34697.0,34694.0,1.35322721]
[1625644937131,2.70792158,34697.0,34694.0,0.001]
[1625644937310,2.69490367,34697.0,34694.0,0.001]
[1625644937432,1.07013739,34697.0,34691.0,0.50727103]
[1625644937672,0.96864574,34697.0,34691.0,0.50727103]
[1625644938155,0.48115088,34697.0,34691.0,0.33818069]
[1625644938511,0.48115088,34697.0,34689.0,0.002]
[1625644938631,0.48115088,34697.0,34690.0,0.2929]
[1625644938756,0.48115088,34697.0,34690.0,0.59874]
[1625644939049,0.48115088,34697.0,34696.0,0.24057544]
[1625644939540,1.13181762,34697.0,34696.0,0.24057544]
[1625644939685,1.61985833,34697.0,34696.0,0.24057544]
[1625644939773,1.63424637,34697.0,34696.0,0.24057544]
[1625644940381,2.6108099,34697.0,34696.0,0.24057544]
[1625644940675,3.74959052,34697.0,34696.0,0.24057544]
[1625644940854,2.61088307,34697.0,34696.0,0.24057544]
[1625644940975,3.74951483,34697.0,34696.0,0.24057544]
[1625644941755,2.7729513,34697.0,34696.0,0.24057544]
[1625644941878,1.63417068,34697.0,34696.0,0.24057544]
[1625644942535,2.61012175,34697.0,34696.0,0.24057544]
[1625644942776,0.01096775,34697.0,34696.0,0.24057544]
[1625644942897,0.31201196,34698.0,34696.0,0.48948544]
[1625644943017,0.09701196,34698.0,34696.0,0.82766139]
[1625644943137,0.09701196,34698.0,34697.0,0.98115088]
[1625644943259,0.29599641,34701.0,34697.0,1.41493588]
[1625644943377,2.39751751,34702.0,34697.0,1.41493588]
[1625644943496,2.39751751,34702.0,34700.0,4.392]
[1625644943497,2.25891751,34702.0,34700.0,4.392]
[1625644943675,1.95969916,34702.0,34701.0,0.5]
[1625644943796,1.30600126,34706.0,34701.0,4.8166646]
[1625644943975,1.30600126,34706.0,34701.0,4.82094626]
[1625644944097,1.30600126,34706.0,34705.0,3.46203034]
[1625644944218,1.30600126,34706.0,34705.0,3.96203034]
[1625644944339,1.30600126,34706.0,34705.0,7.4301114]
[1625644945119,0.002,34706.0,34705.0,8.15183772]
[1625644945421,0.1351953,34709.0,34705.0,8.15183772]
[1625644945539,0.08892247,34710.0,34705.0,8.15183772]
[1625644945672,0.003,34711.0,34705.0,8.15183772]
[1625644945790,0.004,34716.0,34705.0,8.15183772]
[1625644946328,0.004,34716.0,34705.0,5.96448491]
[1625644946440,0.004,34716.0,34706.0,0.5]
[1625644946800,0.004,34716.0,34707.0,0.431742]
[1625644946983,0.004,34716.0,34708.0,0.5]
[1625644947101,0.004,34716.0,34715.0,0.72172632]
[1625644947222,0.004,34716.0,34715.0,0.98879632]
[1625644947641,0.004,34716.0,34715.0,1.42038332]
[1625644948364,0.003,34716.0,34715.0,1.42038332]
[1625644948484,0.003,34716.0,34715.0,1.92602919]
[1625644948724,0.003,34716.0,34715.0,2.60018705]
[1625644949206,0.003,34716.0,34715.0,2.76859322]
[1625644949337,0.003,34716.0,34715.0,3.10540556]
[1625644949566,0.003,34716.0,34715.0,3.18960892]
[1625644949985,0.003,34716.0,34715.0,3.26110892]
[1625644950346,0.003,34716.0,34715.0,2.75546305]
[1625644950466,0.003,34716.0,34715.0,2.08130519]
[1625644950589,0.7556414,34718.0,34715.0,2.08130519]
[1625644950950,0.7556414,34718.0,34715.0,1.91289902]
[1625644951068,0.7556414,34718.0,34715.0,1.57608668]
[1625644951189,0.7556414,34718.0,34717.0,0.24057544]
[1625644951549,0.7556414,34718.0,34717.0,0.66763644]
[1625644952153,0.8172897,34726.0,34717.0,1.17251553]
[1625644952336,0.490339,34726.0,34717.0,1.67251553]
[1625644952511,0.490339,34726.0,34719.0,0.25242908]
[1625644952633,0.08186731,34728.0,34719.0,0.25242908]
[1625644952810,0.08186731,34728.0,34720.0,0.43478]
[1625644952929,0.08186731,34728.0,34720.0,0.60307679]
[1625644953230,0.08186731,34728.0,34727.0,0.98236632]
[1625644954073,0.32697902,34729.0,34727.0,0.98236632]
[1625644954191,0.57245084,34730.0,34727.0,0.98236632]
[1625644954494,0.24543157,34732.0,34727.0,0.98236632]
[1625644955214,0.24543157,34732.0,34731.0,0.24057544]
[1625644956185,1.06293646,34733.0,34731.0,0.24057544]
[1625644956428,0.08181047,34732.0,34731.0,0.24057544]
[1625644957928,1.14418312,34733.0,34731.0,0.24057544]
[1625644958050,0.16333918,34732.0,34731.0,0.24057544]
[1625644958354,0.57164294,34732.0,34731.0,0.24057544]
[1625644958470,0.73499708,34732.0,34731.0,0.24057544]
[1625644958650,0.5623832,34732.0,34731.0,0.24057544]
[1625644960153,0.23583811,34732.0,34731.0,0.24057544]
[1625644960930,0.07248397,34732.0,34731.0,0.24057544]
[1625644961473,0.08267152,34733.0,34731.0,0.24057544]
[1625644962496,0.78687653,34732.0,34731.0,0.24057544]
[1625644962736,1.43762902,34732.0,34731.0,0.24057544]
[1625644963274,2.81618886,34732.0,34731.0,0.24057544]
[1625644963454,3.79223627,34732.0,34731.0,0.24057544]
[1625644964116,3.55166083,34732.0,34731.0,0.24057544]
[1625644964418,3.25319083,34732.0,34731.0,0.24057544]
[1625644964538,2.7647843,34732.0,34731.0,0.24057544]
[1625644965978,1.1379844,34732.0,34731.0,0.24057544]
[1625644967238,0.24464934,34733.0,34731.0,0.24057544]
[1625644967364,0.24464934,34733.0,34731.0,0.52479544]
[1625644967601,0.08161379,34734.0,34731.0,0.52479544]
[1625644967960,0.38438648,34735.0,34733.0,1.0]
[1625644968261,1.25046178,34736.0,34734.0,0.5]
[1625644968383,0.26316178,34736.0,34734.0,0.5]
[1625644968560,1.14047539,34739.0,34734.0,1.5]
[1625644968680,0.0981736,34738.0,34734.0,1.5]
[1625644968803,0.003,34747.0,34736.0,0.5]
[1625644968922,1.24833631,34742.0,34736.0,1.5]
[1625644969045,0.003,34747.0,34737.0,1.0]
[1625644969170,1.42358299,34745.0,34743.0,3.5804]
[1625644969287,3.25884612,34776.0,34744.0,1.22172632]
[1625644969403,0.9251,34775.0,34744.0,1.22172632]
[1625644969587,0.9251,34775.0,34744.0,2.64725332]
[1625644969707,0.9251,34775.0,34749.0,1.0]
[1625644969826,2.6070769,34769.0,34749.0,1.0]
[1625644969944,2.6070769,34769.0,34754.0,1.0]
[1625644970068,2.4345326,34769.0,34768.0,0.83831417]
[1625644970245,3.25884612,34776.0,34768.0,1.14619417]
[1625644970369,3.25884612,34776.0,34769.0,0.5]
[1625644970488,0.32941056,34778.0,34769.0,0.933711]
[1625644970605,0.32941056,34778.0,34773.0,1.0]
[1625644970726,0.98988948,34788.0,34775.0,0.58443128]
[1625644970906,0.98988948,34788.0,34783.0,4.6508]
[1625644971026,0.98988948,34788.0,34783.0,4.89741]
[1625644971265,0.051042,34784.0,34783.0,5.86203976]
[1625644971446,0.98988948,34788.0,34783.0,6.36203976]
[1625644971568,0.20624626,34786.0,34783.0,6.36203976]
[1625644971746,0.91413574,34788.0,34783.0,5.89353976]
[1625644971986,0.91413574,34788.0,34783.0,5.86203976]
[1625644972107,0.91413574,34788.0,34783.0,0.96230176]
[1625644973308,0.91413574,34788.0,34787.0,0.24057544]
[1625644974573,5.0721,34793.0,34787.0,0.24057544]
[1625644975355,5.0721,34793.0,34792.0,0.48115088]
[1625644975473,0.9122,34800.0,34792.0,0.48115088]
[1625644976551,0.9122,34800.0,34775.0,0.41551672]
[1625644976671,1.15704,34800.0,34775.0,0.41551672]
[1625644977044,1.15704,34800.0,34776.0,0.08310758]
[1625644977167,1.15704,34800.0,34775.0,0.08308639]
[1625644977272,0.24057544,34786.0,34784.0,0.24057544]
[1625644977572,0.24057544,34789.0,34784.0,0.24057544]
[1625644978295,0.24057544,34789.0,34787.0,0.001]
[1625644979320,0.24057544,34789.0,34788.0,0.24057544]
[1625644981967,0.24057544,34789.0,34787.0,0.001]
[1625644982087,0.55117544,34789.0,34787.0,0.001]
[1625644983348,0.24057544,34788.0,34787.0,0.001]
[1625644984911,0.54101544,34788.0,34787.0,0.001]
[1625644988096,0.54101544,34788.0,34787.0,0.144]
[1625644988516,0.24057544,34788.0,34787.0,0.144]
[1625644991047,0.24057544,34788.0,34787.0,0.37523]
[1625644991281,0.24057544,34792.0,34787.0,0.37523]
[1625644991406,0.057,34798.0,34791.0,0.72172632]
[1625644991526,0.24057544,34801.0,34791.0,0.72172632]
[1625644992608,0.24057544,34805.0,34791.0,1.22172632]
[1625644992727,0.24057544,34808.0,34791.0,1.22172632]
[1625644992848,0.188,34800.0,34792.0,0.49457473]
[1625644992969,0.188,34800.0,34793.0,0.5]
[1625644993090,0.188,34800.0,34796.0,0.32975427]
[1625644993273,0.0157384,34800.0,34796.0,0.56666427]
[1625644993392,0.24057544,34819.0,34799.0,0.72172632]
[1625644993749,0.057,34818.0,34800.0,0.431844]
[1625644994229,0.24057544,34819.0,34800.0,0.431844]
[1625644994892,0.24057544,34819.0,34801.0,0.5]
[1625644995251,0.24057544,34819.0,34802.0,0.432824]
[1625644995371,0.24057544,34823.0,34815.0,0.96230176]
[1625644996091,0.24057544,34826.0,34815.0,0.96230176]
[1625644996214,0.03422707,34816.0,34815.0,0.96230176]
[1625644998497,0.03422707,34816.0,34810.0,0.08229487]
[1625644998614,0.32760707,34816.0,34810.0,0.08229487]
[1625644998854,0.04818904,34815.0,34810.0,0.08229487]
[1625644999096,0.04818904,34815.0,34809.0,0.32917956]
[1625644999216,0.04818904,34815.0,34807.0,0.49377534]
[1625644999459,0.24057544,34810.0,34809.0,0.24057544]
[1625644999881,0.25480576,34810.0,34809.0,0.24057544]
[1625645000600,0.01423032,34810.0,34805.0,1.22812612]
[1625645000781,4.89963032,34810.0,34803.0,1.15214246]
[1625645000902,4.8854,34810.0,34803.0,1.15214246]
[1625645001200,0.01425506,34809.0,34803.0,1.15214246]
[1625645001560,0.80205088,34804.0,34803.0,1.15214246]
[1625645001801,0.81630606,34804.0,34803.0,1.15214246]
[1625645003424,1.0568815,34804.0,34803.0,1.15214246]
[1625645003903,1.0568815,34804.0,34800.0,0.001]
[1625645004443,0.01425608,34803.0,34800.0,0.001]
[1625645005464,0.25483152,34803.0,34800.0,0.001]
[1625645005887,0.01425627,34802.0,34800.0,0.001]